[Event "Titled Tuesday Blitz March 01 Early 2022"]
[White "Alfaro, William"]
[Black "Tsyhanchuk, Stanislav"]
[WhiteFideId "6100457"]
[BlackFideId "13505130"]
[WhiteElo "2066"]
[BlackElo "2078"]
[Result "1-0"]
[Round "10"]
[TimeControl "180+1"]
[Date "2022.03.01"]
[WhiteClock "0:02:16"]
[BlackClock "0:00:06"]

1. e4 {[%clk 0:02:55]}  c5 {[%clk 0:02:56]} 2. Nf3 {[%clk 0:02:55]}  d6 {[%clk 0:02:54]} 3. d4 {[%clk 0:02:55]}  cxd4 {[%clk 0:02:55]} 4. Nxd4 {[%clk 0:02:56]}  Nf6 {[%clk 0:02:54]} 5. Nc3 {[%clk 0:02:56]}  a6 {[%clk 0:02:53]} 6. Bg5 {[%clk 0:02:54]}  e6 {[%clk 0:02:51]} 7. Qf3 {[%clk 0:02:54]}  Be7 {[%clk 0:02:47]} 8. O-O-O {[%clk 0:02:54]}  Qb6 {[%clk 0:02:45]} 9. Be3 {[%clk 0:02:51]}  Qc7 {[%clk 0:02:44]} 10. Be2 {[%clk 0:02:49]}  b5 {[%clk 0:02:43]} 11. Qg3 {[%clk 0:02:49]}  Rg8 {[%clk 0:02:38]} 12. Bxb5+ {[%clk 0:02:42]}  axb5 {[%clk 0:02:36]} 13. Ndxb5 {[%clk 0:02:43]}  Qb7 {[%clk 0:02:23]} 14. Rxd6 {[%clk 0:02:27]}  Nxe4 {[%clk 0:02:02]} 15. Nxe4 {[%clk 0:02:26]}  Qxb5 {[%clk 0:01:58]} 16. Rhd1 {[%clk 0:02:26]}  Rxa2 {[%clk 0:01:53]} 17. Rd8+ {[%clk 0:02:25]}  Bxd8 {[%clk 0:01:49]} 18. Nd6+ {[%clk 0:02:25]}  Kf8 {[%clk 0:01:41]} 19. Nxb5 {[%clk 0:02:24]}  Ra1+ {[%clk 0:01:14]} 20. Kd2 {[%clk 0:02:24]}  Rxd1+ {[%clk 0:00:08]} 21. Kxd1 {[%clk 0:02:25]}  Ba5 {[%clk 0:00:06]} 22. Qxb8 {[%clk 0:02:16]} 1-0


[Site "https://www.chess.com"]

[Event "Titled Tuesday Blitz March 01 Early 2022"]
[White "Astasio Lopez, David"]
[Black "Yuan, Qingyu"]
[WhiteFideId "2230208"]
[BlackFideId "8609772"]
[WhiteElo "2355"]
[BlackElo "2359"]
[Result "1/2-1/2"]
[Round "10"]
[TimeControl "180+1"]
[Date "2022.03.01"]
[WhiteClock "0:00:03"]
[BlackClock "0:00:05"]

1. d4 {[%clk 0:03:00]}  Nf6 {[%clk 0:03:00]} 2. Nf3 {[%clk 0:03:00]}  g6 {[%clk 0:03:00]} 3. Nbd2 {[%clk 0:03:00]}  d5 {[%clk 0:03:00]} 4. e3 {[%clk 0:03:01]}  Bg7 {[%clk 0:03:00]} 5. b4 {[%clk 0:03:01]}  O-O {[%clk 0:02:59]} 6. Bb2 {[%clk 0:03:02]}  Bf5 {[%clk 0:02:57]} 7. Be2 {[%clk 0:03:01]}  Nbd7 {[%clk 0:02:57]} 8. O-O {[%clk 0:03:01]}  a5 {[%clk 0:02:40]} 9. b5 {[%clk 0:03:01]}  c5 {[%clk 0:02:39]} 10. c4 {[%clk 0:03:00]}  Ne4 {[%clk 0:02:35]} 11. cxd5 {[%clk 0:02:57]}  Nb6 {[%clk 0:02:21]} 12. Ne5 {[%clk 0:02:43]}  cxd4 {[%clk 0:02:09]} 13. Bxd4 {[%clk 0:02:29]}  Qxd5 {[%clk 0:01:49]} 14. Nxe4 {[%clk 0:01:43]}  Bxe4 {[%clk 0:01:47]} 15. Bxb6 {[%clk 0:01:33]}  Bxe5 {[%clk 0:01:44]} 16. Qxd5 {[%clk 0:01:33]}  Bxd5 {[%clk 0:01:44]} 17. Rad1 {[%clk 0:01:31]}  Bxa2 {[%clk 0:01:43]} 18. Rd7 {[%clk 0:01:31]}  Bd6 {[%clk 0:01:32]} 19. Bf3 {[%clk 0:01:23]}  a4 {[%clk 0:01:15]} 20. Ra1 {[%clk 0:01:10]}  Bb3 {[%clk 0:00:55]} 21. Bxb7 {[%clk 0:01:01]}  Be5 {[%clk 0:00:32]} 22. Bd4 {[%clk 0:00:49]}  Bxd4 {[%clk 0:00:28]} 23. Rxd4 {[%clk 0:00:50]}  Ra5 {[%clk 0:00:20]} 24. Bc6 {[%clk 0:00:44]}  Rb8 {[%clk 0:00:19]} 25. Rb4 {[%clk 0:00:42]}  Bc2 {[%clk 0:00:11]} 26. Ra3 {[%clk 0:00:38]}  Ra7 {[%clk 0:00:06]} 27. h4 {[%clk 0:00:33]}  Rc7 {[%clk 0:00:06]} 28. Rc3 {[%clk 0:00:27]}  Bb3 {[%clk 0:00:04]} 29. b6 {[%clk 0:00:26]}  Rcc8 {[%clk 0:00:03]} 30. b7 {[%clk 0:00:18]}  Rc7 {[%clk 0:00:03]} 31. Rb6 {[%clk 0:00:15]}  Bd5 {[%clk 0:00:02]} 32. Bxd5 {[%clk 0:00:08]}  Rxc3 {[%clk 0:00:02]} 33. Ra6 {[%clk 0:00:09]}  Rb3 {[%clk 0:00:02]} 34. Ra8 {[%clk 0:00:07]}  Rxb7 {[%clk 0:00:02]} 35. Bxb7 {[%clk 0:00:07]}  Rxa8 {[%clk 0:00:02]} 36. Bxa8 {[%clk 0:00:08]}  e6 {[%clk 0:00:02]} 37. Be4 {[%clk 0:00:07]}  a3 {[%clk 0:00:02]} 38. Bb1 {[%clk 0:00:08]}  Kf8 {[%clk 0:00:03]} 39. Ba2 {[%clk 0:00:08]}  Ke7 {[%clk 0:00:03]} 40. g4 {[%clk 0:00:08]}  Kd6 {[%clk 0:00:04]} 41. Kg2 {[%clk 0:00:09]}  Kc5 {[%clk 0:00:02]} 42. Kg3 {[%clk 0:00:07]}  Kb4 {[%clk 0:00:03]} 43. Kf4 {[%clk 0:00:07]}  Kc3 {[%clk 0:00:03]} 44. Ke5 {[%clk 0:00:04]}  Kb2 {[%clk 0:00:04]} 45. Bc4 {[%clk 0:00:04]}  Kc3 {[%clk 0:00:04]} 46. Ba2 {[%clk 0:00:05]}  Kb2 {[%clk 0:00:05]} 47. Bc4 {[%clk 0:00:04]}  Kc3 {[%clk 0:00:05]} 48. Ba2 {[%clk 0:00:03]} 1/2-1/2


[Site "https://www.chess.com"]

[Event "Titled Tuesday Blitz March 01 Early 2022"]
[White "Bambino Filho, Antonio Carlos"]
[Black "Zia, Tahsin Tajwar"]
[WhiteFideId "2113163"]
[BlackFideId "10211888"]
[WhiteElo "2452"]
[BlackElo "1800"]
[Result "1-0"]
[Round "10"]
[TimeControl "180+1"]
[Date "2022.03.01"]
[WhiteClock "0:00:54"]
[BlackClock "0:00:03"]

1. d4 {[%clk 0:03:00]}  d5 {[%clk 0:02:59]} 2. c4 {[%clk 0:03:01]}  e6 {[%clk 0:02:53]} 3. Nf3 {[%clk 0:03:01]}  Nf6 {[%clk 0:02:48]} 4. Nc3 {[%clk 0:03:01]}  a6 {[%clk 0:02:45]} 5. c5 {[%clk 0:02:58]}  b6 {[%clk 0:02:33]} 6. cxb6 {[%clk 0:02:58]}  cxb6 {[%clk 0:02:26]} 7. Bf4 {[%clk 0:02:57]}  Bd6 {[%clk 0:02:10]} 8. Bg5 {[%clk 0:02:57]}  h6 {[%clk 0:02:03]} 9. Bh4 {[%clk 0:02:57]}  Bb7 {[%clk 0:02:02]} 10. e3 {[%clk 0:02:57]}  b5 {[%clk 0:02:00]} 11. Bd3 {[%clk 0:02:56]}  Nbd7 {[%clk 0:02:00]} 12. O-O {[%clk 0:02:56]}  Qa5 {[%clk 0:01:54]} 13. a4 {[%clk 0:02:54]}  b4 {[%clk 0:01:53]} 14. Ne2 {[%clk 0:02:54]}  Ne4 {[%clk 0:01:51]} 15. Nc1 {[%clk 0:02:52]}  f5 {[%clk 0:01:39]} 16. Nb3 {[%clk 0:02:52]}  Qc7 {[%clk 0:01:35]} 17. Rc1 {[%clk 0:02:51]}  Qb8 {[%clk 0:01:33]} 18. Ne5 {[%clk 0:02:09]}  Nxe5 {[%clk 0:01:16]} 19. dxe5 {[%clk 0:02:09]}  Bxe5 {[%clk 0:01:14]} 20. Qh5+ {[%clk 0:02:08]}  Kf8 {[%clk 0:01:10]} 21. Bxe4 {[%clk 0:02:00]}  dxe4 {[%clk 0:01:05]} 22. Qg6 {[%clk 0:01:54]}  Qe8 {[%clk 0:01:01]} 23. Qxe8+ {[%clk 0:01:48]}  Kxe8 {[%clk 0:01:02]} 24. Bg3 {[%clk 0:01:42]}  Bxb2 {[%clk 0:00:49]} 25. Rc7 {[%clk 0:01:41]}  Bd5 {[%clk 0:00:49]} 26. Nd4 {[%clk 0:01:37]}  Bxd4 {[%clk 0:00:39]} 27. exd4 {[%clk 0:01:37]}  b3 {[%clk 0:00:33]} 28. Bd6 {[%clk 0:01:10]}  Rb8 {[%clk 0:00:14]} 29. Ba3 {[%clk 0:01:08]}  Kd8 {[%clk 0:00:10]} 30. Rxg7 {[%clk 0:01:05]}  Rc8 {[%clk 0:00:03]} 31. Bc5 {[%clk 0:00:54]}  Rc7 {[%clk 0:00:04]} 32. Bb6 {[%clk 0:00:54]}  b2 {[%clk 0:00:03]} 33. Bxc7+ {[%clk 0:00:53]}  Ke8 {[%clk 0:00:03]} 34. Rb1 {[%clk 0:00:53]}  Kf8 {[%clk 0:00:03]} 35. Rd7 {[%clk 0:00:53]}  Ke8 {[%clk 0:00:03]} 36. Rd8+ {[%clk 0:00:53]}  Ke7 {[%clk 0:00:03]} 37. Rxh8 {[%clk 0:00:54]} 1-0


[Site "https://www.chess.com"]

[Event "Titled Tuesday Blitz March 01 Early 2022"]
[White "Brodowski, Piotr"]
[Black "Budrewicz, Krzysztof"]
[WhiteFideId "1124480"]
[BlackFideId "1127950"]
[WhiteElo "2422"]
[BlackElo "2248"]
[Result "1-0"]
[Round "10"]
[TimeControl "180+1"]
[Date "2022.03.01"]
[WhiteClock "0:00:16"]
[BlackClock "0:00:16"]

1. e4 {[%clk 0:02:52]}  c5 {[%clk 0:02:59]} 2. Nf3 {[%clk 0:02:48]}  e6 {[%clk 0:02:59]} 3. b3 {[%clk 0:02:47]}  Nc6 {[%clk 0:02:58]} 4. Bb2 {[%clk 0:02:46]}  Nf6 {[%clk 0:02:58]} 5. e5 {[%clk 0:02:43]}  Nd5 {[%clk 0:02:58]} 6. c4 {[%clk 0:02:30]}  Nde7 {[%clk 0:02:50]} 7. Nc3 {[%clk 0:02:24]}  Nf5 {[%clk 0:02:48]} 8. Ne4 {[%clk 0:02:11]}  d5 {[%clk 0:02:35]} 9. exd6 {[%clk 0:02:10]}  Nxd6 {[%clk 0:02:34]} 10. Nxd6+ {[%clk 0:01:54]}  Qxd6 {[%clk 0:02:32]} 11. Qe2 {[%clk 0:01:40]}  f6 {[%clk 0:02:30]} 12. O-O-O {[%clk 0:01:38]}  Kf7 {[%clk 0:02:20]} 13. d4 {[%clk 0:01:25]}  cxd4 {[%clk 0:02:19]} 14. Nxd4 {[%clk 0:01:24]}  Nxd4 {[%clk 0:02:09]} 15. Rxd4 {[%clk 0:01:24]}  Qc7 {[%clk 0:02:08]} 16. Qh5+ {[%clk 0:01:21]}  g6 {[%clk 0:02:08]} 17. Qf3 {[%clk 0:01:21]}  e5 {[%clk 0:02:03]} 18. Rd5 {[%clk 0:01:16]}  Bh6+ {[%clk 0:01:46]} 19. Kb1 {[%clk 0:01:14]}  Bf5+ {[%clk 0:01:46]} 20. Bd3 {[%clk 0:01:13]}  Bxd3+ {[%clk 0:01:45]} 21. Qxd3 {[%clk 0:01:13]}  Rhd8 {[%clk 0:01:43]} 22. Rd1 {[%clk 0:01:13]}  Rxd5 {[%clk 0:01:37]} 23. Qxd5+ {[%clk 0:01:14]}  Kg7 {[%clk 0:01:36]} 24. Qd7+ {[%clk 0:01:13]}  Qxd7 {[%clk 0:01:36]} 25. Rxd7+ {[%clk 0:01:13]}  Kg8 {[%clk 0:01:37]} 26. Rxb7 {[%clk 0:01:11]}  a5 {[%clk 0:01:30]} 27. Kc2 {[%clk 0:01:06]}  a4 {[%clk 0:01:29]} 28. b4 {[%clk 0:01:06]}  a3 {[%clk 0:01:29]} 29. Bc3 {[%clk 0:01:06]}  Bf8 {[%clk 0:01:23]} 30. c5 {[%clk 0:01:06]}  Rd8 {[%clk 0:01:17]} 31. c6 {[%clk 0:01:04]}  Rc8 {[%clk 0:01:14]} 32. b5 {[%clk 0:01:04]}  Bc5 {[%clk 0:01:13]} 33. f3 {[%clk 0:01:04]}  h5 {[%clk 0:01:07]} 34. Ba5 {[%clk 0:00:56]}  Kf8 {[%clk 0:01:04]} 35. Kb3 {[%clk 0:00:50]}  f5 {[%clk 0:01:02]} 36. Kc4 {[%clk 0:00:38]}  Bg1 {[%clk 0:00:57]} 37. Kd5 {[%clk 0:00:33]}  Bxh2 {[%clk 0:00:53]} 38. Bb4+ {[%clk 0:00:29]}  Kg8 {[%clk 0:00:52]} 39. b6 {[%clk 0:00:26]}  e4 {[%clk 0:00:52]} 40. fxe4 {[%clk 0:00:25]}  fxe4 {[%clk 0:00:52]} 41. c7 {[%clk 0:00:22]}  e3 {[%clk 0:00:51]} 42. Ra7 {[%clk 0:00:22]}  Re8 {[%clk 0:00:38]} 43. Rxa3 {[%clk 0:00:17]}  e2 {[%clk 0:00:38]} 44. Be1 {[%clk 0:00:17]}  Kf7 {[%clk 0:00:35]} 45. Rc3 {[%clk 0:00:17]}  Re5+ {[%clk 0:00:22]} 46. Kc6 {[%clk 0:00:16]}  Re6+ {[%clk 0:00:19]} 47. Kb7 {[%clk 0:00:16]}  Re7 {[%clk 0:00:18]} 48. Ka8 {[%clk 0:00:16]}  Bxc7 {[%clk 0:00:16]} 49. bxc7 {[%clk 0:00:16]} 1-0


[Site "https://www.chess.com"]

[Event "Titled Tuesday Blitz March 01 Early 2022"]
[White "Chigaev, Maksim"]
[Black "Wong, Yinn Long"]
[WhiteFideId "4108116"]
[BlackFideId "5707684"]
[WhiteElo "2502"]
[BlackElo "2055"]
[Result "0-1"]
[Round "10"]
[TimeControl "180+1"]
[Date "2022.03.01"]
[WhiteClock "0:00:04"]
[BlackClock "0:00:08"]

1. e4 {[%clk 0:03:00]}  e6 {[%clk 0:02:56]} 2. d4 {[%clk 0:03:00]}  d5 {[%clk 0:02:57]} 3. Nc3 {[%clk 0:03:01]}  Nf6 {[%clk 0:02:57]} 4. Bg5 {[%clk 0:03:00]}  h6 {[%clk 0:02:54]} 5. Bxf6 {[%clk 0:03:00]}  Qxf6 {[%clk 0:02:54]} 6. exd5 {[%clk 0:03:01]}  Bb4 {[%clk 0:02:55]} 7. dxe6 {[%clk 0:03:01]}  Bxe6 {[%clk 0:02:56]} 8. Nf3 {[%clk 0:03:00]}  O-O {[%clk 0:02:54]} 9. Be2 {[%clk 0:03:01]}  Bxc3+ {[%clk 0:02:52]} 10. bxc3 {[%clk 0:03:00]}  Nc6 {[%clk 0:02:53]} 11. O-O {[%clk 0:03:00]}  Rad8 {[%clk 0:02:54]} 12. Bd3 {[%clk 0:02:55]}  b6 {[%clk 0:02:50]} 13. Nd2 {[%clk 0:02:52]}  Rfe8 {[%clk 0:02:41]} 14. Re1 {[%clk 0:02:50]}  Qg5 {[%clk 0:02:26]} 15. Ne4 {[%clk 0:02:44]}  Qa5 {[%clk 0:02:26]} 16. Qf3 {[%clk 0:02:39]}  Ne7 {[%clk 0:02:14]} 17. Ng3 {[%clk 0:02:28]}  c5 {[%clk 0:02:00]} 18. dxc5 {[%clk 0:01:16]}  Qxc5 {[%clk 0:02:00]} 19. h3 {[%clk 0:01:11]}  Nd5 {[%clk 0:01:36]} 20. c4 {[%clk 0:01:06]}  Ne7 {[%clk 0:01:24]} 21. Ne4 {[%clk 0:01:01]}  Qc7 {[%clk 0:01:10]} 22. Rad1 {[%clk 0:00:53]}  Ng6 {[%clk 0:01:04]} 23. Ng3 {[%clk 0:00:38]}  Nf8 {[%clk 0:00:52]} 24. Nf5 {[%clk 0:00:35]}  Ng6 {[%clk 0:00:46]} 25. Ng3 {[%clk 0:00:34]}  Nf8 {[%clk 0:00:45]} 26. Nh5 {[%clk 0:00:32]}  Ng6 {[%clk 0:00:20]} 27. Bxg6 {[%clk 0:00:09]}  fxg6 {[%clk 0:00:21]} 28. Rxd8 {[%clk 0:00:08]}  Qxd8 {[%clk 0:00:16]} 29. Nf4 {[%clk 0:00:07]}  Bxc4 {[%clk 0:00:15]} 30. Re4 {[%clk 0:00:03]}  Bf7 {[%clk 0:00:12]} 31. Rxe8+ {[%clk 0:00:02]}  Qxe8 {[%clk 0:00:13]} 32. a3 {[%clk 0:00:03]}  Qe1+ {[%clk 0:00:13]} 33. Kh2 {[%clk 0:00:03]}  Qe5 {[%clk 0:00:13]} 34. g3 {[%clk 0:00:04]}  Qb2 {[%clk 0:00:13]} 35. Qd3 {[%clk 0:00:03]}  Qf6 {[%clk 0:00:12]} 36. Kg1 {[%clk 0:00:03]}  g5 {[%clk 0:00:12]} 37. Nd5 {[%clk 0:00:03]}  Qa1+ {[%clk 0:00:11]} 38. Kg2 {[%clk 0:00:03]}  Qe5 {[%clk 0:00:11]} 39. Ne3 {[%clk 0:00:03]}  Qe7 {[%clk 0:00:09]} 40. Qd4 {[%clk 0:00:03]}  Bg6 {[%clk 0:00:08]} 41. Qd5+ {[%clk 0:00:03]}  Kh7 {[%clk 0:00:08]} 42. a4 {[%clk 0:00:04]}  Be4+ {[%clk 0:00:08]} 0-1


[Site "https://www.chess.com"]

[Event "Titled Tuesday Blitz March 01 Early 2022"]
[White "Coto Mederos, Michel"]
[Black "Shubenkova, Veronika"]
[WhiteFideId "3508528"]
[BlackFideId "44124040"]
[WhiteElo "2427"]
[BlackElo "1938"]
[Result "1/2-1/2"]
[Round "10"]
[TimeControl "180+1"]
[Date "2022.03.01"]
[WhiteClock "0:00:02"]
[BlackClock "0:00:12"]

1. d4 {[%clk 0:02:51]}  d5 {[%clk 0:02:59]} 2. Nf3 {[%clk 0:02:49]}  e6 {[%clk 0:02:58]} 3. Bf4 {[%clk 0:02:45]}  Bd6 {[%clk 0:02:57]} 4. Bg3 {[%clk 0:02:45]}  f5 {[%clk 0:02:56]} 5. e3 {[%clk 0:02:44]}  Nf6 {[%clk 0:02:56]} 6. Nbd2 {[%clk 0:02:44]}  O-O {[%clk 0:02:56]} 7. Bd3 {[%clk 0:02:38]}  c6 {[%clk 0:02:52]} 8. c4 {[%clk 0:02:37]}  Ne4 {[%clk 0:02:49]} 9. Bxd6 {[%clk 0:02:28]}  Qxd6 {[%clk 0:02:48]} 10. Ne5 {[%clk 0:02:29]}  Nd7 {[%clk 0:02:48]} 11. Nxd7 {[%clk 0:02:18]}  Bxd7 {[%clk 0:02:47]} 12. c5 {[%clk 0:02:16]}  Qe7 {[%clk 0:02:47]} 13. O-O {[%clk 0:01:57]}  e5 {[%clk 0:02:45]} 14. Nf3 {[%clk 0:01:53]}  exd4 {[%clk 0:02:42]} 15. exd4 {[%clk 0:01:53]}  Rf6 {[%clk 0:02:34]} 16. Ne5 {[%clk 0:01:09]}  Nxc5 {[%clk 0:02:16]} 17. Re1 {[%clk 0:00:56]}  Nxd3 {[%clk 0:02:12]} 18. Qxd3 {[%clk 0:00:54]}  Qd6 {[%clk 0:02:11]} 19. f4 {[%clk 0:00:52]}  Raf8 {[%clk 0:02:05]} 20. Re3 {[%clk 0:00:48]}  Be8 {[%clk 0:02:04]} 21. Rae1 {[%clk 0:00:46]}  c5 {[%clk 0:02:01]} 22. Qa3 {[%clk 0:00:42]}  cxd4 {[%clk 0:02:00]} 23. Qxd6 {[%clk 0:00:37]}  Rxd6 {[%clk 0:02:00]} 24. Rd3 {[%clk 0:00:38]}  Rb6 {[%clk 0:02:00]} 25. b3 {[%clk 0:00:36]}  Bc6 {[%clk 0:01:59]} 26. Rxd4 {[%clk 0:00:35]}  Ra6 {[%clk 0:01:58]} 27. Re2 {[%clk 0:00:34]}  Ra3 {[%clk 0:01:56]} 28. Rc2 {[%clk 0:00:33]}  Rf6 {[%clk 0:01:56]} 29. Kf2 {[%clk 0:00:29]}  h6 {[%clk 0:01:46]} 30. g3 {[%clk 0:00:29]}  Kh7 {[%clk 0:01:44]} 31. Nd3 {[%clk 0:00:20]}  Re6 {[%clk 0:01:39]} 32. Ne5 {[%clk 0:00:20]}  a5 {[%clk 0:01:38]} 33. Rdd2 {[%clk 0:00:17]}  a4 {[%clk 0:01:37]} 34. bxa4 {[%clk 0:00:16]}  Rxa4 {[%clk 0:01:34]} 35. Rb2 {[%clk 0:00:15]}  Re4 {[%clk 0:01:32]} 36. Rb3 {[%clk 0:00:13]}  g5 {[%clk 0:01:31]} 37. Rf3 {[%clk 0:00:06]}  gxf4 {[%clk 0:01:27]} 38. gxf4 {[%clk 0:00:07]}  d4 {[%clk 0:01:27]} 39. Rdd3 {[%clk 0:00:06]}  Bb5 {[%clk 0:01:21]} 40. Rd2 {[%clk 0:00:06]}  Ra6 {[%clk 0:01:14]} 41. Rb2 {[%clk 0:00:06]}  Ra5 {[%clk 0:01:10]} 42. Kg3 {[%clk 0:00:05]}  Be2 {[%clk 0:01:00]} 43. Rfb3 {[%clk 0:00:05]}  b5 {[%clk 0:00:57]} 44. Rc2 {[%clk 0:00:05]}  Ra7 {[%clk 0:00:55]} 45. Rc5 {[%clk 0:00:05]}  Rg7+ {[%clk 0:00:55]} 46. Kf2 {[%clk 0:00:05]}  Bd1 {[%clk 0:00:51]} 47. Rg3 {[%clk 0:00:04]}  Rxf4+ {[%clk 0:00:50]} 48. Kg2 {[%clk 0:00:05]}  Be2 {[%clk 0:00:39]} 49. Rd5 {[%clk 0:00:04]}  Rxg3+ {[%clk 0:00:38]} 50. Kxg3 {[%clk 0:00:05]}  Re4 {[%clk 0:00:37]} 51. Rd7+ {[%clk 0:00:05]}  Kg8 {[%clk 0:00:35]} 52. Ng6 {[%clk 0:00:04]}  Rg4+ {[%clk 0:00:34]} 53. Kf2 {[%clk 0:00:04]}  d3 {[%clk 0:00:31]} 54. Ne5 {[%clk 0:00:03]}  Rf4+ {[%clk 0:00:28]} 55. Kg3 {[%clk 0:00:02]}  Re4 {[%clk 0:00:24]} 56. Nc6 {[%clk 0:00:02]}  Re3+ {[%clk 0:00:20]} 57. Kf2 {[%clk 0:00:02]}  Rf3+ {[%clk 0:00:20]} 58. Ke1 {[%clk 0:00:03]}  Rf1+ {[%clk 0:00:20]} 59. Kd2 {[%clk 0:00:03]}  Rd1+ {[%clk 0:00:20]} 60. Ke3 {[%clk 0:00:04]}  Ra1 {[%clk 0:00:19]} 61. Nb4 {[%clk 0:00:04]}  Rb1 {[%clk 0:00:19]} 62. Nd5 {[%clk 0:00:04]}  Rb2 {[%clk 0:00:18]} 63. Nf6+ {[%clk 0:00:04]}  Kf8 {[%clk 0:00:18]} 64. Kf4 {[%clk 0:00:03]}  Rxa2 {[%clk 0:00:18]} 65. Kxf5 {[%clk 0:00:03]}  d2 {[%clk 0:00:16]} 66. Nh7+ {[%clk 0:00:02]}  Ke8 {[%clk 0:00:15]} 67. Nf6+ {[%clk 0:00:02]}  Kf8 {[%clk 0:00:15]} 68. Nh7+ {[%clk 0:00:01]}  Ke8 {[%clk 0:00:11]} 69. Nf6+ {[%clk 0:00:02]}  Kf8 {[%clk 0:00:12]} 1/2-1/2


[Site "https://www.chess.com"]

[Event "Titled Tuesday Blitz March 01 Early 2022"]
[White "Csonka, Balazs"]
[Black "Nur-Mukhametova, Alisa"]
[WhiteFideId "742910"]
[BlackFideId "54117739"]
[WhiteElo "2404"]
[BlackElo "2015"]
[Result "1-0"]
[Round "10"]
[TimeControl "180+1"]
[Date "2022.03.01"]
[WhiteClock "0:00:15"]
[BlackClock "0:00:04"]

1. e4 {[%clk 0:03:00]}  c5 {[%clk 0:02:58]} 2. Nf3 {[%clk 0:03:00]}  e6 {[%clk 0:02:58]} 3. d4 {[%clk 0:03:00]}  cxd4 {[%clk 0:02:59]} 4. Nxd4 {[%clk 0:03:00]}  Nf6 {[%clk 0:03:00]} 5. Nc3 {[%clk 0:03:00]}  d6 {[%clk 0:03:00]} 6. Be3 {[%clk 0:02:58]}  Nc6 {[%clk 0:03:00]} 7. f3 {[%clk 0:02:51]}  a6 {[%clk 0:02:57]} 8. Qd2 {[%clk 0:02:51]}  Qc7 {[%clk 0:02:57]} 9. O-O-O {[%clk 0:02:47]}  b5 {[%clk 0:02:57]} 10. Bxb5 {[%clk 0:02:29]}  axb5 {[%clk 0:02:55]} 11. Ndxb5 {[%clk 0:02:30]}  Qb8 {[%clk 0:02:52]} 12. Nxd6+ {[%clk 0:02:29]}  Bxd6 {[%clk 0:02:52]} 13. Qxd6 {[%clk 0:02:30]}  Qxd6 {[%clk 0:02:50]} 14. Rxd6 {[%clk 0:02:31]}  Bb7 {[%clk 0:02:38]} 15. Rhd1 {[%clk 0:02:23]}  Ne5 {[%clk 0:02:19]} 16. b3 {[%clk 0:02:20]}  O-O {[%clk 0:02:19]} 17. Rb6 {[%clk 0:01:46]}  Rfb8 {[%clk 0:01:51]} 18. a4 {[%clk 0:01:20]}  Nfd7 {[%clk 0:01:46]} 19. Rbd6 {[%clk 0:01:18]}  Bc8 {[%clk 0:01:10]} 20. Nb5 {[%clk 0:01:06]}  f6 {[%clk 0:00:47]} 21. Rxe6 {[%clk 0:00:40]}  Kf7 {[%clk 0:00:33]} 22. Red6 {[%clk 0:00:35]}  Nf8 {[%clk 0:00:30]} 23. Nc7 {[%clk 0:00:23]}  Ra5 {[%clk 0:00:27]} 24. Bb6 {[%clk 0:00:23]}  Rxb6 {[%clk 0:00:19]} 25. Rxb6 {[%clk 0:00:24]}  Rc5 {[%clk 0:00:19]} 26. Nb5 {[%clk 0:00:21]}  Be6 {[%clk 0:00:13]} 27. Kb2 {[%clk 0:00:19]}  h5 {[%clk 0:00:12]} 28. Nd4 {[%clk 0:00:16]}  Bd7 {[%clk 0:00:08]} 29. Ra1 {[%clk 0:00:15]}  g5 {[%clk 0:00:07]} 30. a5 {[%clk 0:00:15]}  Rc7 {[%clk 0:00:04]} 31. a6 {[%clk 0:00:15]}  Ra7 {[%clk 0:00:04]} 32. Rb7 {[%clk 0:00:15]}  Ra8 {[%clk 0:00:04]} 33. a7 {[%clk 0:00:15]} 1-0


[Site "https://www.chess.com"]

[Event "Titled Tuesday Blitz March 01 Early 2022"]
[White "Dauner, Benedikt"]
[Black "Kanyamarala, Trisha"]
[WhiteFideId "16225899"]
[BlackFideId "45004722"]
[WhiteElo "2230"]
[BlackElo "2002"]
[Result "1/2-1/2"]
[Round "10"]
[TimeControl "180+1"]
[Date "2022.03.01"]
[WhiteClock "0:00:16"]
[BlackClock "0:02:08"]

1. d4 {[%clk 0:03:00]}  Nf6 {[%clk 0:02:56]} 2. Nf3 {[%clk 0:03:01]}  d5 {[%clk 0:02:56]} 3. c3 {[%clk 0:03:01]}  e6 {[%clk 0:02:56]} 4. e3 {[%clk 0:03:00]}  c5 {[%clk 0:02:57]} 5. Bd3 {[%clk 0:03:01]}  Nc6 {[%clk 0:02:57]} 6. O-O {[%clk 0:03:01]}  Bd6 {[%clk 0:02:58]} 7. Nbd2 {[%clk 0:03:01]}  O-O {[%clk 0:02:58]} 8. Qe2 {[%clk 0:03:02]}  e5 {[%clk 0:02:55]} 9. dxe5 {[%clk 0:03:00]}  Nxe5 {[%clk 0:02:56]} 10. Nxe5 {[%clk 0:02:59]}  Bxe5 {[%clk 0:02:56]} 11. e4 {[%clk 0:02:59]}  Re8 {[%clk 0:02:47]} 12. f4 {[%clk 0:02:55]}  dxe4 {[%clk 0:02:36]} 13. Nxe4 {[%clk 0:02:54]}  Nxe4 {[%clk 0:02:33]} 14. fxe5 {[%clk 0:02:05]}  Ng5 {[%clk 0:02:22]} 15. h4 {[%clk 0:00:55]}  Ne6 {[%clk 0:02:17]} 16. Bxh7+ {[%clk 0:00:27]}  Kxh7 {[%clk 0:02:09]} 17. Qh5+ {[%clk 0:00:27]}  Kg8 {[%clk 0:02:10]} 18. Qxf7+ {[%clk 0:00:27]}  Kh8 {[%clk 0:02:10]} 19. Qh5+ {[%clk 0:00:21]}  Kg8 {[%clk 0:02:09]} 20. Qf7+ {[%clk 0:00:20]}  Kh8 {[%clk 0:02:08]} 21. Qh5+ {[%clk 0:00:16]}  Kg8 {[%clk 0:02:08]} 22. Qf7+ {[%clk 0:00:16]} 1/2-1/2


[Site "https://www.chess.com"]